fUST/lending_fUST_20260107
["ID","MTS","AMOUNT","RATE_DAILY","PERIOD"]
[400724571,1767798658316,-634.815792,0.0002658,7]
[400724572,1767798658326,-151.0,0.0002658,7]
[400724573,1767798658336,-634.815792,0.0002658,7]
[400724574,1767798658346,-247.352857,0.0002658,7]
[400724575,1767798658355,-235.000047,0.0002658,7]
[400724576,1767798658364,-634.815792,0.0002658,7]
[400724577,1767798658375,-247.352857,0.0002658,7]
[400724578,1767798658384,-634.815792,0.0002658,7]
[400724579,1767798658393,-247.352857,0.0002658,7]
[400724580,1767798658403,-247.352857,0.0002658,7]
[400724581,1767798658415,-1041.66666667,0.000266,7]
[400724582,1767798658426,-1110.0,0.00026616,2]
[400724583,1767798658436,-1000.0,0.0002665,7]
[400724584,1767798658447,-530.111159,0.0002668,7]
[400724585,1767798658456,-1016.281206,0.0002668,7]
[400724586,1767798658466,-530.111159,0.0002668,7]
[400724587,1767798658476,-1016.281206,0.0002668,7]
[400724588,1767798658487,-447.26970669,0.0002668,7]
[400724626,1767798959918,-150.0,0.00016579,2]
[400724627,1767798959953,-177.0,0.00018579,2]
[400724628,1767798959988,-204.0,0.00020579,2]
[400724629,1767798960022,-300.0,0.00020646,2]
[400724630,1767798960055,-300.0,0.00020646,2]
[400724631,1767798960090,-300.0,0.00020646,2]
[400724632,1767798960123,-300.0,0.00020646,2]
[400724633,1767798960155,-188.6,0.00020848,2]
[400724634,1767798960188,-699.058196,0.0002103,2]
[400724635,1767798960226,-300.0,0.00021059,2]
[400724636,1767798960264,-300.0,0.00021059,2]
[400724637,1767798960300,-1000.0,0.00021574,2]
[400724640,1767799017827,150.0,8.556e-05,2]
[400724641,1767799018243,150.0,8.963e-05,2]
[400724642,1767799018678,150.0,9.37e-05,2]
[400724643,1767799019100,150.0,9.778e-05,2]
[400724644,1767799019518,150.0,0.00010185,2]
[400724645,1767799019920,150.0,0.00010593,2]
[400724646,1767799020325,150.0,0.00011,2]
[400724647,1767799020791,154.54,0.00011408,2]
[400724648,1767799021322,173.86,0.00011815,2]
[400724649,1767799022929,26870.27,0.00030137,120]
[400724658,1767799135059,157.23091071,0.00024746,120]
[400724662,1767799188749,4752.06292053,0.0001213,2]
[400724669,1767799226027,5000.0,0.0001213,2]
[400724753,1767799718642,4142.12901,0.0003,120]
[400724763,1767799753223,-5000.0,0.00013792,2]
[400724764,1767799753244,-150.0,0.00013932,2]
[400724765,1767799753264,-177.0,0.00015932,2]
[400724766,1767799753285,-500.0,0.00016009,2]
[400724767,1767799753305,-204.0,0.00017932,2]
[400724768,1767799753326,-20000.0,0.00019,2]
[400724769,1767799753346,-8249.5203889,0.0001972,2]
[400724770,1767799753373,-231.0,0.00019931,2]
[400724771,1767799753394,-182.108123,0.00020483,2]
[400724772,1767799753415,-198.8,0.00020879,2]
[400724773,1767799753435,-500.0,0.00021384,2]
[400724774,1767799753455,-150.0,0.00021918,2]
[400724775,1767799753475,-191.737,0.00021927,2]
[400724776,1767799753496,-258.0,0.00021931,2]
[400724777,1767799753516,-500.0,0.00021989,2]
[400724778,1767799753537,-500.0,0.00021989,2]
[400724779,1767799753556,-500.0,0.00021989,2]
[400724780,1767799753576,-500.0,0.00021989,2]
[400724781,1767799753597,-500.0,0.00021989,2]
[400724782,1767799753620,-500.0,0.00021989,2]
[400724783,1767799753645,-500.0,0.00021989,2]
[400724784,1767799753670,-500.0,0.00021989,2]
[400724785,1767799753692,-500.0,0.00021989,2]
[400724786,1767799753715,-500.0,0.00021989,2]
[400724787,1767799753735,-500.0,0.00021989,2]
[400724788,1767799753756,-500.0,0.00021989,2]
[400724789,1767799753778,-500.0,0.00021989,2]
[400724790,1767799753799,-500.0,0.00021989,2]
[400724791,1767799753822,-500.0,0.00021989,2]
[400724792,1767799753848,-500.0,0.00021989,2]
[400724793,1767799753881,-500.0,0.00021989,2]
[400724794,1767799753907,-500.0,0.00021989,2]
[400724795,1767799753928,-413.634207,0.00021989,2]
[400724796,1767799753948,-490.94754169,0.00021989,2]
[400724797,1767799753968,-453.13203237,0.00021989,2]
[400724798,1767799753989,-500.0,0.00021989,2]
[400724799,1767799754012,-500.0,0.00021989,2]
[400724800,1767799754034,-500.0,0.00021989,2]
[400724801,1767799754058,-500.0,0.00021989,2]
[400724802,1767799754079,-500.0,0.00021989,2]
[400724803,1767799754101,-500.0,0.00021989,2]
[400724804,1767799754123,-500.0,0.00021989,2]
[400724805,1767799754145,-500.0,0.00021989,2]
[400724806,1767799754167,-500.0,0.00021989,2]
[400724807,1767799754190,-500.0,0.00021989,2]
[400724808,1767799754213,-500.0,0.00021989,2]
[400724809,1767799754235,-500.0,0.00021989,2]
[400724810,1767799754259,-500.0,0.00021989,2]
[400724811,1767799754283,-500.0,0.00021989,2]
[400724812,1767799754305,-500.0,0.00021989,2]
[400724813,1767799754329,-500.0,0.00021989,2]
[400724814,1767799754353,-500.0,0.00021989,2]
[400724815,1767799754379,-500.0,0.00021989,2]
[400724816,1767799754403,-500.0,0.00021989,2]
[400724817,1767799754425,-606.1623527,0.00021989,2]
[400724818,1767799754712,-500.0,0.00021989,2]
[400724819,1767799754734,-500.0,0.00021989,2]
[400724820,1767799754762,-443.17119141,0.00021989,2]
[400724821,1767799754785,-500.0,0.00021989,2]
[400724822,1767799754809,-500.0,0.00021989,2]
[400724823,1767799754834,-500.0,0.00021989,2]
[400724824,1767799754858,-500.0,0.00021989,2]
[400724825,1767799754883,-500.0,0.00021989,2]
[400724826,1767799754907,-500.0,0.00021989,2]
[400724827,1767799754930,-500.0,0.00021989,2]
[400724828,1767799754953,-216.05439188,0.00021989,2]
[400724829,1767799754975,-500.0,0.00021989,2]
[400724830,1767799754998,-500.0,0.00021989,2]
[400724831,1767799755022,-500.0,0.00021989,2]
[400724832,1767799755044,-500.0,0.00021989,2]
[400724833,1767799755066,-500.0,0.00021989,2]
[400724834,1767799755089,-500.0,0.00021989,2]
[400724835,1767799755111,-500.0,0.00021989,2]
[400724836,1767799755134,-598.98448637,0.00021989,2]
[400724837,1767799755160,-500.0,0.00021989,2]
[400724838,1767799755187,-500.0,0.00021989,2]
[400724839,1767799755211,-500.0,0.00021989,2]
[400724840,1767799755235,-500.0,0.00021989,2]
[400724841,1767799755258,-650.0,0.00021989,2]
[400724842,1767799755283,-500.0,0.00021989,2]
[400724843,1767799755304,-16134.54138023,0.0002199,2]
[400724846,1767799774131,-1155.27202005,0.0002177,2]
[400724847,1767799774150,-2860.9832535,0.0002199,10]
[400724891,1767799832152,-200.0,0.00012511,2]
[400724892,1767799832162,-968.91284753,0.0002199,10]
[400724906,1767799838382,-1300.09500992,0.0002199,10]
[400724907,1767799838408,-2444.87520001,0.0002199,10]
[400724908,1767799838421,-6335.06694254,0.0002199,10]
[400724909,1767799838431,-1846.21208974,0.0002199,10]
[400724910,1767799838443,-7361.24791026,0.0002199,10]
[400724911,1767799838454,-184.93989391,0.0002199,10]
[400724912,1767799838468,-6620.37145646,0.0002199,10]
[400724913,1767799838493,-867.57864963,0.0002199,10]
[400724914,1767799838503,-9396.14156454,0.0002199,2]
[400724915,1767799838512,-70874.0006494,0.00022,2]
[400724916,1767799838521,-171.84386487,0.00022,10]
[400724917,1767799838531,-94723.72893292,0.00022,7]
[400724918,1767799838541,-828.88420571,0.00022,20]
[400724919,1767799838550,-3623.73068922,0.00022,2]
[400724920,1767799838560,-352.8926,0.00022,2]
[400724921,1767799838569,-352.8926,0.00022,3]
[400724922,1767799838579,-1041.66666667,0.00022005,2]
[400724923,1767799838588,-151.6,0.000221,7]
[400724924,1767799838598,-270.52382339,0.00022132,2]
[400724925,1767799838608,-500.0,0.00022132,2]
[400724926,1767799838617,-500.0,0.00022132,2]
[400724927,1767799838627,-500.0,0.00022132,2]
[400724928,1767799838637,-500.0,0.00022132,2]
[400724929,1767799838647,-500.0,0.00022132,2]
[400724930,1767799838656,-500.0,0.00022132,2]
[400724931,1767799838666,-637.66892824,0.00022132,2]
[400724932,1767799838676,-500.0,0.00022132,2]
[400724933,1767799838686,-500.0,0.00022132,2]
[400724934,1767799838696,-500.0,0.00022132,2]
[400724935,1767799838706,-500.0,0.00022132,2]
[400724936,1767799838721,-500.0,0.00022132,2]
[400724937,1767799838732,-249.02223343,0.00022132,2]
[400724938,1767799838742,-500.0,0.00022132,2]
[400724939,1767799838752,-500.0,0.00022132,2]
[400724940,1767799838762,-500.0,0.00022132,2]
[400724941,1767799838775,-500.0,0.00022132,2]
[400724942,1767799838785,-538.62448208,0.00022132,2]
[400724943,1767799838794,-538.62448208,0.00022132,2]
[400724944,1767799838804,-538.62448208,0.00022132,2]
[400724945,1767799838815,-538.62448208,0.00022132,2]
[400724946,1767799838824,-538.62448208,0.00022132,2]
[400724947,1767799838834,-538.62448208,0.00022132,2]
[400724948,1767799838847,-538.62448208,0.00022132,2]
[400724949,1767799838857,-538.62448208,0.00022132,2]
[400724950,1767799838867,-538.62448208,0.00022132,2]
[400724951,1767799838877,-538.62448208,0.00022132,2]
[400724952,1767799838887,-538.62448208,0.00022132,2]
[400724953,1767799838896,-538.62448208,0.00022132,2]
[400724954,1767799838906,-538.62448208,0.00022132,2]
[400724955,1767799838915,-538.62448208,0.00022132,2]
[400724956,1767799838925,-538.62448208,0.00022132,2]
[400724957,1767799838934,-893648.43033293,0.00022133,2]
[400724958,1767799838947,-818.02365166,0.00022133,2]
[400724959,1767799838962,-741.4161234,0.00022133,2]
[400725067,1767799840468,-36326.04837834,0.00022133,2]
[400725070,1767799840490,-1000.0,0.00022133,2]
[400725073,1767799840511,-467.091,0.00022133,2]
[400725354,1767799846037,-709.41504857,0.00022133,2]
[400725355,1767799846052,-66289.5754651,0.00022133,2]
[400725356,1767799846061,-17588.54,0.000222,2]
[400725357,1767799846071,-152.95,0.000222,7]
[400725358,1767799846081,-1667.1,0.000222,14]
[400725359,1767799846090,-229.9,0.000222,2]
[400725360,1767799846100,-1319.81,0.000222,7]
[400725361,1767799846109,-167.72,0.000222,7]
[400725362,1767799846118,-352.89,0.000222,2]
[400725364,1767799846128,-605.301663,0.00022232,2]
[400725365,1767799846138,-500.0,0.00022232,2]
[400725366,1767799846148,-198.8,0.00022362,2]
[400725367,1767799846158,-300.0,0.00022466,2]
[400725368,1767799846167,-1032.71087693,0.000225,2]
[400725369,1767799846178,-450.0,0.00023014,2]
[400725370,1767799846187,-1000.0,0.00023156,2]
[400725371,1767799846200,-500.0,0.00023181,2]
[400725372,1767799846210,-500.0,0.00023279,2]
[400725373,1767799846219,-1000.0,0.00023339,2]
[400725374,1767799846229,-1000.0,0.00023341,2]
[400725375,1767799846239,-500.0,0.0002338,2]
[400725376,1767799846248,-600.0,0.00023562,2]
[400725377,1767799846258,-1000.0,0.00023799,2]
[400725378,1767799846267,-500.0,0.0002381,2]
[400725379,1767799846277,-198.8,0.00023845,2]
[400725380,1767799846286,-1000.0,0.00023907,2]
[400725381,1767799846296,-285.0,0.00023931,2]
[400725382,1767799846306,-9114.49,0.0002399,10]
[400725383,1767799846316,-23906.54289923,0.00024,2]
[400725384,1767799846326,-245.28508092,0.00024,60]
[400725385,1767799846336,-1734.693215,0.00024,2]
[400725386,1767799846346,-465.43647205,0.00024,2]
[400725387,1767799846357,-618.86,0.00024,14]
[400725388,1767799846371,-587.58501506,0.00024014,2]
[400725389,1767799846381,-697.259145,0.00024042,2]
[400725390,1767799846390,-500.0,0.00024102,2]
[400725391,1767799846400,-450.0,0.0002411,2]
[400725392,1767799846409,-494571.61059857,0.00024142,2]
[400725393,1767799846419,-151.0,0.00024142,2]
[400725394,1767799846428,-151.0,0.00024142,2]
[400725395,1767799846437,-151.0,0.00024142,2]
[400725396,1767799846449,-2314.74728905,0.000242,2]
[400725398,1767799846459,-1000.0,0.00024214,2]
[400725400,1767799846468,-1000.0,0.00024234,2]
[400725402,1767799846478,-459.68311318,0.00024304,5]
[400725404,1767799846487,-514.84070869,0.00024308,2]
[400725405,1767799846496,-2487.15318209,0.00024308,2]
[400725406,1767799846506,-250.0,0.00024308,2]
[400725407,1767799846515,-250.0,0.00024308,2]
[400725408,1767799846524,-336.2136942,0.00024308,2]
[400725409,1767799846533,-250.0,0.00024308,2]
[400725410,1767799846543,-250.0,0.00024308,2]
[400725411,1767799846553,-331.11356299,0.00024308,2]
[400725412,1767799846564,-28612.23221129,0.00024308,2]
[400725413,1767799846576,-1387.76778871,0.00024308,2]
[400725414,1767799846585,-12298.45324739,0.0002435,3]
[400725415,1767799846599,-1536.81447687,0.0002435,3]
[400725416,1767799846610,-500.0,0.0002438,2]
[400725417,1767799846620,-1974.17602471,0.00024413,2]
[400725418,1767799846629,-27670.4,0.000246,3]
[400725419,1767799846639,-156724.58563049,0.0002465,2]
[400725420,1767799846649,-513.79712507,0.0002465,2]
[400725421,1767799846658,-151.0,0.0002465,2]
[400725422,1767799846667,-151.0,0.0002465,2]
[400725423,1767799846676,-151.0,0.0002465,2]
[400725424,1767799846685,-150.0,0.00024658,2]
[400725425,1767799846696,-16821.80898001,0.00024774,2]
[400725426,1767799846706,-141817.363137,0.000248,2]
[400725427,1767799846715,-1000.0,0.00024805,2]
[400725428,1767799846724,-533.88981491,0.00024856,2]
[400725429,1767799846734,-2579.17784983,0.00024856,2]
[400725430,1767799846744,-31110.0,0.00024856,2]
[400725431,1767799846753,-151.0,0.000249,7]
[400725432,1767799846762,-151.0,0.000249,7]
[400725433,1767799846772,-151.0,0.000249,7]
[400725434,1767799846784,-295.378113,0.000249,7]
[400725435,1767799846794,-151.0,0.000249,7]
[400725436,1767799846804,-151.0,0.000249,7]
[400725437,1767799846815,-234.411422,0.000249,7]
[400725438,1767799846824,-151.0,0.000249,7]
[400725439,1767799846833,-151.0,0.000249,7]
[400725440,1767799846843,-151.0,0.000249,7]
[400725441,1767799846852,-274.263171,0.000249,7]
[400725442,1767799846862,-151.0,0.000249,7]
[400725443,1767799846873,-633502.137314,0.000249,2]
[400725444,1767799846882,-151.0,0.000249,7]
[400725445,1767799846891,-151.0,0.000249,7]
[400725446,1767799846900,-151.0,0.000249,7]
[400725447,1767799846909,-411.0,0.00024932,7]
[400725448,1767799846917,-150.0,0.00024932,2]
[400725449,1767799846927,-150.0,0.00024932,2]
[400725450,1767799846935,-500.0,0.00024932,2]
[400725451,1767799846946,-17588.54,0.00025,2]
[400725452,1767799846955,-1319.81,0.00025,7]
[400725453,1767799846964,-184.0,0.00025,7]
[400725454,1767799846974,-166.0,0.00025,7]
[400725455,1767799846983,-411.0,0.00025,7]
[400725456,1767799846992,-150.0,0.00025069,2]
[400725457,1767799847002,-150.0,0.00025069,2]
[400725458,1767799847011,-599.45180267,0.00025069,2]
[400725459,1767799847020,-1274.73376449,0.00025094,5]
[400725460,1767799847264,-5093.8361229,0.00025094,5]
[400725461,1767799847275,-1504.32767461,0.00025094,5]
[400725462,1767799847285,-6011.29338776,0.00025094,5]
[400725463,1767799847294,-500.0,0.00025132,2]
[400725464,1767799847304,-163.0,0.00025194,3]
[400725465,1767799847313,-229.9,0.000252,2]
[400725466,1767799847323,-250.0,0.00025205,2]
[400725467,1767799847332,-150.0,0.00025206,2]
[400725468,1767799847341,-150.0,0.00025206,2]
[400725469,1767799847351,-967.43187484,0.00025206,2]
[400725470,1767799847361,-3869.72749934,0.00025206,2]
[400725471,1767799847370,-152.95,0.000253,7]
[400725472,1767799847380,-1667.1,0.000253,14]
[400725473,1767799847390,-198.8,0.00025328,2]
[400725474,1767799847399,-200.0,0.00025343,2]
[400725475,1767799847409,-150.0,0.00025343,2]
[400725476,1767799847419,-553.64373807,0.00025404,2]
[400725477,1767799847428,-986.85788576,0.00025404,2]
[400725478,1767799847438,-9298.35417483,0.00025404,2]
[400725479,1767799847449,-8706.88687352,0.00025468,2]
[400725480,1767799847458,-532.78271809,0.00025468,2]
[400725481,1767799847468,-2131.13087237,0.00025468,2]
[400725482,1767799847478,-4795.04446283,0.00025468,2]
[400725483,1767799847487,-8524.52348948,0.00025468,2]
[400725484,1767799847496,-447.26951081,0.00025469,2]
[400725485,1767799847507,-150.0,0.0002548,2]
[400725486,1767799847516,-777.0,0.000256,2]
[400725487,1767799847526,-250.0,0.00025617,2]
[400725488,1767799847535,-347.0,0.00025661,3]
[400725489,1767799847544,-166.0,0.00025661,3]
[400725490,1767799847553,-347.0,0.00025661,3]
[400725491,1767799847562,-166.0,0.00025661,3]
[400725492,1767799847571,-166.0,0.00025661,3]
[400725493,1767799847580,-347.0,0.00025661,3]
[400725494,1767799847590,-204.25814769,0.00025661,3]
[400725495,1767799847601,-200.27131476,0.00025661,3]
[400725496,1767799847611,-166.0,0.00025661,3]
[400725497,1767799847620,-347.0,0.00025661,3]
[400725498,1767799847629,-166.0,0.00025661,3]
[400725499,1767799847640,-151.0,0.00025661,3]
[400725500,1767799847649,-347.0,0.00025661,3]
[400725501,1767799847661,-151.0,0.00025661,3]
[400725502,1767799847670,-166.0,0.00025661,3]
[400725503,1767799847679,-347.0,0.00025661,3]
[400725504,1767799847689,-151.0,0.00025661,3]
[400725505,1767799847700,-347.0,0.00025661,3]
[400725506,1767799847709,-151.0,0.00025661,3]
[400725507,1767799847718,-336.0,0.00025661,3]
[400725508,1767799847729,-151.0,0.00025661,3]
[400725509,1767799847738,-347.0,0.00025661,3]
[400725510,1767799847748,-336.0,0.00025661,3]
[400725511,1767799847762,-151.0,0.00025661,3]
[400725512,1767799847774,-347.0,0.00025661,3]
[400725513,1767799847784,-336.0,0.00025661,3]
[400725514,1767799847794,-151.0,0.00025661,3]
[400725515,1767799847803,-347.0,0.00025661,3]
[400725516,1767799847813,-336.0,0.00025661,3]
[400725517,1767799847822,-347.0,0.00025661,3]
[400725518,1767799847831,-151.0,0.00025661,3]
[400725519,1767799847840,-336.0,0.00025661,3]
[400725520,1767799847850,-151.0,0.00025661,3]
[400725521,1767799847861,-347.0,0.00025661,3]
[400725522,1767799847870,-336.0,0.00025661,3]
[400725523,1767799847879,-151.0,0.00025661,3]
[400725524,1767799847888,-151.0,0.00025661,3]
[400725525,1767799847898,-347.0,0.00025661,3]
[400725526,1767799847907,-336.0,0.00025661,3]
[400725527,1767799847915,-151.0,0.00025661,3]
[400725528,1767799847925,-151.0,0.00025661,3]
[400725529,1767799847934,-347.0,0.00025661,3]
[400725530,1767799847944,-336.0,0.00025661,3]
[400725531,1767799847953,-151.0,0.00025661,3]
[400725532,1767799847962,-151.0,0.00025661,3]
[400725533,1767799847972,-347.0,0.00025661,3]
[400725534,1767799847981,-336.0,0.00025661,3]
[400725535,1767799847990,-151.0,0.00025661,3]
[400725536,1767799847999,-151.0,0.00025661,3]
[400725537,1767799848008,-347.0,0.00025661,3]
[400725538,1767799848019,-151.0,0.00025661,3]
[400725539,1767799848028,-151.0,0.00025661,3]
[400725540,1767799848037,-336.0,0.00025661,3]
[400725541,1767799848047,-347.0,0.00025661,3]
[400725542,1767799848057,-151.0,0.00025661,3]
[400725543,1767799848066,-336.0,0.00025661,3]
[400725544,1767799848076,-347.0,0.00025661,3]
[400725545,1767799848086,-151.0,0.00025661,3]
[400725546,1767799848095,-336.0,0.00025661,3]
[400725547,1767799848105,-347.0,0.00025661,3]
[400725548,1767799848114,-151.0,0.00025661,3]
[400725549,1767799848124,-336.0,0.00025661,3]
[400725550,1767799848134,-347.0,0.00025661,3]
[400725551,1767799848143,-151.0,0.00025661,3]
[400725552,1767799848152,-336.0,0.00025661,3]
[400725553,1767799848162,-347.0,0.00025661,3]
[400725554,1767799848171,-151.0,0.00025661,3]
[400725555,1767799848181,-336.0,0.00025661,3]
[400725556,1767799848190,-347.0,0.00025661,3]
[400725557,1767799848204,-151.0,0.00025661,3]
[400725558,1767799848213,-336.0,0.00025661,3]
[400725559,1767799848223,-347.0,0.00025661,3]
[400725560,1767799848233,-151.0,0.00025661,3]
[400725561,1767799848243,-336.0,0.00025661,3]
[400725562,1767799848252,-347.0,0.00025661,3]
[400725563,1767799848262,-151.0,0.00025661,3]
[400725564,1767799848271,-336.0,0.00025661,3]
[400725565,1767799848280,-347.0,0.00025661,3]
[400725566,1767799848290,-151.0,0.00025661,3]
[400725567,1767799848300,-336.0,0.00025661,3]
[400725568,1767799848310,-347.0,0.00025661,3]
[400725569,1767799848320,-151.0,0.00025661,3]
[400725570,1767799848329,-336.0,0.00025661,3]
[400725571,1767799848339,-336.0,0.00025661,3]
[400725572,1767799848349,-151.0,0.00025661,3]
[400725573,1767799848359,-336.0,0.00025661,3]
[400725574,1767799848368,-151.0,0.00025661,3]
[400725575,1767799848378,-336.0,0.00025661,3]
[400725576,1767799848388,-151.0,0.00025661,3]
[400725577,1767799848398,-336.0,0.00025661,3]
[400725578,1767799848407,-151.0,0.00025661,3]
[400725579,1767799848416,-336.0,0.00025661,3]
[400725580,1767799848426,-151.0,0.00025661,3]
[400725581,1767799848435,-336.0,0.00025661,3]
[400725582,1767799848445,-151.0,0.00025661,3]
[400725583,1767799848455,-336.0,0.00025661,3]
[400725584,1767799848464,-153.05483042,0.00025661,3]
[400725585,1767799848473,-336.0,0.00025661,3]
[400725586,1767799848482,-429.4634567,0.00025661,3]
[400725587,1767799848493,-347.0,0.00025661,3]
[400725588,1767799848502,-347.0,0.00025661,3]
[400725589,1767799848511,-347.0,0.00025661,3]
[400725590,1767799848521,-347.0,0.00025661,3]
[400725591,1767799848529,-347.0,0.00025661,3]
[400725592,1767799848539,-347.0,0.00025661,3]
[400725593,1767799848548,-347.0,0.00025661,3]
[400725594,1767799848557,-347.0,0.00025661,3]
[400725595,1767799848567,-347.0,0.00025661,3]
[400725596,1767799848578,-347.0,0.00025661,3]
[400725597,1767799848587,-347.0,0.00025661,3]
[400725598,1767799848597,-347.0,0.00025661,3]
[400725599,1767799848606,-347.0,0.00025661,3]
[400725600,1767799848615,-376.65305407,0.00025661,3]
[400725601,1767799848624,-150.0,0.000257,2]
[400725602,1767799848634,-500.0,0.00025708,2]
[400725603,1767799848643,-5000.0,0.00025713,2]
[400725604,1767799848652,-500.0,0.00025749,2]
[400725605,1767799848662,-350.0,0.00025753,2]
[400725606,1767799848671,-500.0,0.00025803,7]
[400725607,1767799848680,-2265.46816013,0.00025818,2]
[400725608,1767799848695,-932.3218008,0.00025869,2]
[400725609,1767799848704,-411.0,0.0002589,7]
[400725610,1767799848715,-312.0,0.00025932,2]
[400725611,1767799848725,-500.0,0.00025948,7]
[400725612,1767799848735,-685.18551266,0.00025952,2]
[400725613,1767799848746,-165.7,0.00026027,7]
[400725614,1767799848755,-165.7,0.00026027,7]
[400725615,1767799848764,-165.7,0.00026027,7]
[400725616,1767799848774,-165.7,0.00026027,7]
[400725617,1767799848785,-151.0,0.00026027,7]
[400725618,1767799848794,-151.0,0.00026027,7]
[400725619,1767799848804,-151.0,0.00026027,7]
[400725620,1767799848815,-151.0,0.00026027,7]
[400725621,1767799848825,-151.0,0.00026027,7]
[400725622,1767799848835,-151.0,0.00026027,7]
[400725623,1767799848845,-151.0,0.00026027,7]
[400725624,1767799848855,-234.643774,0.00026027,7]
[400725625,1767799848864,-155.076774,0.00026027,7]
[400725626,1767799848873,-151.0,0.00026027,7]
[400725627,1767799848882,-202.942405,0.00026027,7]
[400725628,1767799848892,-151.0,0.00026027,7]
[400725629,1767799848901,-151.0,0.00026027,7]
[400725630,1767799848910,-151.0,0.00026027,7]
[400725631,1767799848919,-173.61071177,0.00026027,7]
[400725632,1767799848929,-151.0,0.00026027,7]
[400725633,1767799848938,-165.389182,0.00026027,7]
[400725634,1767799848948,-304.884362,0.00026027,7]
[400725635,1767799848957,-304.884362,0.00026027,7]
[400725636,1767799848967,-304.884362,0.00026027,7]
[400725637,1767799848976,-304.884362,0.00026027,7]
[400725638,1767799848985,-151.0,0.00026027,7]
[400725639,1767799848994,-151.0,0.00026027,7]
[400725640,1767799849004,-151.0,0.00026027,7]
[400725641,1767799849014,-151.0,0.00026027,7]
[400725642,1767799849023,-243.866483,0.00026027,7]
[400725643,1767799849032,-243.866483,0.00026027,7]
[400725644,1767799849040,-243.866483,0.00026027,7]
[400725645,1767799849050,-151.0,0.00026027,7]
[400725646,1767799849060,-243.866483,0.00026027,7]
[400725647,1767799849070,-151.0,0.00026027,7]
[400725648,1767799849079,-151.0,0.00026027,7]
[400725649,1767799849088,-151.0,0.00026027,7]
[400725650,1767799849097,-239.620071,0.00026027,7]
[400725651,1767799849107,-151.0,0.00026027,7]
[400725652,1767799849116,-151.0,0.00026027,7]
[400725653,1767799849125,-151.0,0.00026027,7]
[400725654,1767799849134,-151.0,0.00026027,7]
[400725655,1767799849143,-151.0,0.00026027,7]
[400725656,1767799849152,-151.0,0.00026027,7]
[400725658,1767799849161,-151.0,0.00026027,7]
[400725660,1767799849170,-151.0,0.00026027,7]
[400725662,1767799849180,-151.0,0.00026027,7]
[400725663,1767799849189,-151.0,0.00026027,7]
[400725665,1767799849198,-151.0,0.00026027,7]
[400725667,1767799849207,-151.0,0.00026027,7]
[400725668,1767799849217,-204.454588,0.00026027,7]
[400725669,1767799849227,-151.0,0.00026027,7]
[400725670,1767799849236,-151.0,0.00026027,7]
[400725671,1767799849246,-151.0,0.00026027,2]
[400725672,1767799849256,-245.198295,0.00026027,7]
[400725673,1767799849265,-245.198295,0.00026027,7]
[400725674,1767799849275,-151.0,0.00026027,7]
[400725675,1767799849284,-245.198295,0.00026027,7]
[400725676,1767799849295,-1248.257541,0.00026027,7]
[400725677,1767799849304,-245.198295,0.00026027,7]